bitfinex/quotes_SOLUSD_20250722
["timestamp","ask_amount","ask_price","bid_price","bid_amount"]
[1753179935230,26.42801042,197.91,197.9,0.03]
[1753179935546,26.60801042,197.91,197.9,0.03]
[1753179936130,26.60801042,197.91,197.86,0.03]
[1753179936131,16.78468397,197.87,197.86,0.03]
[1753179936351,21.37520865,197.87,197.86,0.03]
[1753179936549,21.55520865,197.87,197.86,0.03]
[1753179938231,26.60903186,197.87,197.86,0.03]
[1753179939146,26.42903186,197.87,197.86,0.03]
[1753179940351,30.59052468,197.87,197.86,0.71]
[1753179941156,30.59052468,197.87,197.86,0.03]
[1753179941858,52.42903186,197.87,197.86,0.03]
[1753179945774,30.59052468,197.87,197.86,0.03]
[1753179946453,30.59052468,197.87,197.86,0.71]
[1753179946783,26.0,197.87,197.86,0.71]
[1753179946988,30.59052468,197.87,197.86,0.71]
[1753179947773,81.9,197.89,197.86,0.71]
[1753179947774,86.49052468,197.89,197.86,0.71]
[1753179948171,31.05299794,197.91,197.86,0.71]
[1753179948172,4.59052468,197.91,197.86,0.71]
[1753179948478,4.59052468,197.93,197.86,5.30052468]
[1753179948679,4.59052468,197.93,197.88,5.05356781]
[1753179948854,4.59052468,197.94,197.89,0.68]
[1753179949649,30.59052468,197.94,197.89,0.68]
[1753179950057,35.64258075,197.94,197.88,5.05356781]
[1753179950257,30.59052468,197.94,197.9,0.68]
[1753179950573,30.59052468,197.94,197.91,0.68]
[1753179951375,35.64258973,197.94,197.91,0.68]
[1753179952271,30.59052468,197.94,197.91,0.68]
[1753179953069,30.59052468,197.94,197.89,5.05329546]
[1753179953284,30.59052468,197.94,197.92,0.65]
[1753179955382,35.64257337,197.94,197.9,0.65]
[1753179955583,16.78468397,197.93,197.88,0.65]
[1753179955759,4.59052468,197.91,197.88,0.65]
[1753179956081,9.64325745,197.92,197.88,0.65]
[1753179956781,4.59052468,197.91,197.88,0.65]
[1753179957163,4.59052468,197.91,197.89,0.65]
[1753179959372,4.59052468,197.91,197.9,0.65]
[1753179959779,16.78468397,197.9,197.86,0.68]
[1753179959986,4.59052468,197.87,197.86,0.03]
[1753179960674,4.59052468,197.87,197.86,0.68]
[1753179961270,4.59052468,197.89,197.86,0.68]
[1753179962465,4.59052468,197.88,197.86,0.03]
[1753179962686,42.78468397,197.91,197.87,0.65]
[1753179962687,4.59052468,197.89,197.87,0.65]
[1753179962879,26.0,197.91,197.88,0.65]
[1753179963083,4.59052468,197.9,197.89,0.65]
[1753179963276,4.59052468,197.91,197.89,0.65]
[1753179963479,26.06,197.94,197.89,0.65]
[1753179963678,16.78468397,197.93,197.9,0.65]
[1753179963890,4.59052468,197.91,197.86,0.03]
[1753179964071,4.59052468,197.87,197.86,0.03]
[1753179964486,4.59052468,197.88,197.86,0.68]
[1753179964790,4.59052468,197.88,197.87,0.65]
[1753179965563,4.59052468,197.9,197.87,0.65]
[1753179965995,86.49052468,197.91,197.87,0.65]
[1753179966180,4.59052468,197.91,197.87,0.65]
[1753179966782,16.78468397,197.93,197.87,5.70371732]
[1753179966992,4.59052468,197.92,197.88,0.65]
[1753179967715,0.06,197.94,197.88,0.65]
[1753179967872,4.59052468,197.93,197.88,0.65]
[1753179968873,4.59052468,197.93,197.89,5.05331244]
[1753179969195,4.59052468,197.93,197.9,0.65]
[1753179969373,4.59052468,197.93,197.89,5.05331244]
[1753179969574,4.59052468,197.93,197.91,0.65]
[1753179969792,0.06,197.94,197.91,0.65]
[1753179969981,4.59052468,197.93,197.91,0.65]
[1753179970575,0.06,197.94,197.92,0.65]
[1753179972002,0.06,197.94,197.92,5.70238815]
[1753179972490,0.06,197.94,197.92,5.05238815]
[1753179972690,0.06,197.94,197.93,0.65]
[1753179973992,0.06,197.94,197.93,5.70229121]
[1753179975072,0.06,197.94,197.93,10.29281589]
[1753179980812,0.06,197.94,197.93,10.79804501]
[1753179981200,0.06,197.95,197.93,10.79804501]
[1753179981419,0.06,197.95,197.94,5.24052468]
[1753179981598,0.06,197.95,197.94,10.29256065]
[1753179983616,0.06,197.95,197.94,5.70203597]
[1753179983926,0.06,197.95,197.94,0.65]
[1753179985002,0.06,197.95,197.94,5.70203597]
[1753179985407,0.06,197.95,197.94,0.65]
[1753179986328,0.24,197.95,197.91,5.05280177]
[1753179986534,0.06,197.95,197.91,5.05280177]
[1753179986835,0.06,197.95,197.94,4.59052468]
[1753179987216,1e-08,197.99,197.94,22.27265057]
[1753179987530,1e-08,197.99,197.97,4.59052468]
[1753179987908,1e-08,197.99,197.98,0.7]
[1753179988640,1e-08,197.99,197.98,5.29052468]
[1753179989198,1e-08,197.99,197.98,10.34153993]
[1753179990431,1e-08,197.99,197.98,12.50454145]
[1753179991834,1e-08,197.99,197.98,11.99943993]
[1753179994318,4.59052469,197.99,197.95,0.7]
[1753179994535,4.59052468,197.98,197.91,4.59052468]
[1753179994836,4.59052468,197.97,197.91,5.29052468]
[1753179995037,4.59052468,197.97,197.89,1.519]
[1753179995038,4.59052468,197.97,197.9,9.64352294]
[1753179995250,4.59052468,197.96,197.89,4.59052468]
[1753179995438,4.59052468,197.96,197.89,5.29052468]
[1753179995619,4.59052468,197.96,197.89,10.34380228]
[1753179995825,4.59052468,197.98,197.92,4.59052468]
[1753179996334,1e-08,197.99,197.93,5.29052468]
[1753179996538,1e-08,197.99,197.94,4.59052468]
[1753179996724,1e-08,197.99,197.94,5.29052468]
[1753179997044,1e-08,197.99,197.94,0.7]
[1753179997528,4.83052469,197.99,197.93,4.59052468]
[1753179997728,4.59052468,197.98,197.93,5.05229121]
[1753179998931,4.59052468,197.98,197.93,0.7]
[1753179999117,1e-08,197.99,197.95,4.59052468]
[1753179999318,1e-08,197.99,197.98,4.59052468]
[1753179999746,1e-08,197.99,197.98,5.29052468]
[1753180001041,1e-08,197.99,197.98,10.34153993]
[1753180009350,0.2,198.07,197.98,22.96907806]
[1753180009661,0.2,198.07,198.02,30.59052468]
[1753180009843,0.2,198.07,198.05,4.59052468]
[1753180010355,0.44,198.07,198.0,0.7]
[1753180010533,5.03052468,198.07,198.01,26.0]
[1753180011242,5.03052468,198.07,198.01,30.59052468]
[1753180011733,0.2,198.07,198.02,0.7]
[1753180011937,0.2,198.07,198.01,30.59052468]
[1753180012143,0.2,198.07,198.03,0.68]
[1753180012327,0.2,198.07,198.03,5.72953018]
[1753180013240,0.2,198.07,198.03,5.04953018]
[1753180013550,5.03052468,198.07,198.03,5.04953018]
[1753180013937,4.79052468,198.07,198.03,5.04953018]
[1753180014251,4.79052468,198.07,198.04,0.68]
[1753180014252,0.2,198.07,198.04,0.68]
[1753180014457,0.2,198.07,198.05,0.68]
[1753180014662,0.2,198.07,198.06,4.59052468]
[1753180014843,0.2,198.07,198.06,31.27052468]
[1753180015849,0.2,198.07,198.06,26.68]
[1753180016159,0.2,198.07,198.06,31.27052468]
[1753180017146,0.2,198.07,198.06,39.06537996]
[1753180018841,0.2,198.07,198.06,31.72897505]
[1753180019046,0.2,198.07,198.03,7.33640491]
[1753180019248,0.2,198.07,198.02,12.38639986]
[1753180019548,7.33640491,198.06,198.02,5.04999495]
[1753180019758,7.57640491,198.06,198.0,5.05050505]
[1753180020765,7.33640491,198.05,198.0,5.05050505]
[1753180021242,0.2,198.07,198.01,0.68]
[1753180021243,7.33640491,198.06,198.01,0.68]
[1753180021643,0.2,198.07,198.03,7.33640491]
[1753180021865,0.2,198.07,198.02,8.01640491]
[1753180022038,0.2,198.07,198.02,7.33640491]
[1753180022238,0.2,198.07,198.03,0.68]
[1753180022465,0.2,198.07,198.02,7.33640491]
[1753180022663,0.2,198.07,198.06,7.33640491]
[1753180022868,0.2,198.07,198.06,12.38537996]
[1753180023372,0.2,198.07,198.06,13.06537996]
[1753180024166,0.2,198.12,198.06,25.6878176]
[1753180024364,0.2,198.12,198.1,7.33640491]
[1753180024561,0.2,198.12,198.07,1.18487201]
[1753180024868,0.2,198.12,198.09,7.33640491]
[1753180025176,0.2,198.12,198.1,5.04795557]
[1753180026369,0.2,198.12,198.07,5.04851586]
[1753180026555,7.57640491,198.11,198.06,5.04890365]
[1753180027151,0.24,198.11,198.06,5.04890365]
[1753180027352,7.53640491,198.12,198.06,5.04890365]
[1753180028051,0.06,198.11,198.06,5.04890365]
[1753180028251,0.06,198.11,198.06,5.72890365]
[1753180029158,7.39640491,198.11,198.06,5.72890365]
[1753180030158,0.06,198.11,198.07,0.68]
[1753180030484,0.06,198.11,198.08,5.72832678]
[1753180031187,7.39640491,198.11,198.05,7.33640491]
[1753180031486,7.33640491,198.09,198.04,0.68]
[1753180031669,7.33640491,198.09,198.03,26.0]
[1753180031866,7.33640491,198.09,198.03,5.04973993]
[1753180032051,0.24,198.1,198.03,5.04973993]
[1753180032254,7.33640491,198.09,198.03,5.04973993]
[1753180032669,7.33640491,198.07,198.02,5.04992789]
[1753180032890,7.33640491,198.05,198.02,5.04992789]
[1753180033353,7.33640491,198.05,198.0,5.05050505]
[1753180033781,7.33640491,198.05,198.0,5.73050505]
[1753180034848,7.33640491,198.04,198.0,5.05050505]
[1753180035072,7.57640491,198.04,197.98,5.05077433]
[1753180035249,7.33640491,198.0,197.95,0.71]
[1753180035454,0.24,198.0,197.95,0.03]
[1753180035693,7.33640491,198.0,197.96,0.68]
[1753180035858,7.33640491,198.0,197.97,0.68]
[1753180036188,7.33640491,198.01,197.95,5.08176961]
[1753180036390,7.33640491,197.99,197.95,0.71]
[1753180036557,7.33640491,197.98,197.95,0.03]
[1753180040185,7.33640491,197.96,197.95,0.03]
[1753180040484,24.12108888,197.96,197.95,0.03]
[1753180040689,24.36108888,197.96,197.95,0.03]
[1753180040875,7.33640491,197.96,197.95,0.03]
[1753180041359,7.57640491,197.96,197.95,0.03]
[1753180042869,7.33640491,197.96,197.95,0.03]
[1753180045082,7.33640491,197.98,197.95,0.72]
[1753180045276,89.23640491,197.99,197.95,0.03]
[1753180045609,7.33640491,197.98,197.95,0.03]
[1753180046170,141.5522,198.1,197.97,7.33640491]
[1753180046375,7.33640491,198.08,198.02,7.33640491]
[1753180046670,7.33640491,198.09,198.03,8.02640491]
[1753180046884,0.06,198.11,198.05,5.04922999]
[1753180046885,7.39640491,198.11,198.05,5.04922999]
[1753180047081,7.39640491,198.11,198.06,0.69]
[1753180047270,7.39640491,198.11,198.05,5.04922999]
[1753180047594,7.39640491,198.11,198.05,13.0756349]
[1753180048595,0.06,198.11,198.06,8.02640491]
[1753180048787,0.06,198.11,198.07,5.04872014]
[1753180049095,0.06,198.11,198.07,5.73872014]
[1753180049298,0.06,198.11,198.08,0.69]
[1753180050904,0.06,198.11,198.09,0.69]
[1753180051673,0.06,198.11,198.08,5.04827058]
[1753180051897,0.06,198.11,198.08,5.73827058]
[1753180052198,7.39640491,198.11,198.07,5.048675]
[1753180052896,7.39640491,198.11,198.07,0.69]
[1753180053093,7.39640491,198.11,198.05,7.33640491]
[1753180053302,7.33640491,198.09,198.03,8.02640491]
[1753180053496,7.33640491,198.09,198.03,13.07614484]
[1753180054604,7.33640491,198.06,198.02,31.04996659]
[1753180054784,7.33640491,198.06,198.02,5.04996659]
[1753180055100,7.33640491,198.06,198.02,5.73996659]
[1753180056499,7.33640491,198.06,198.03,0.69]
[1753180056700,89.23640491,198.1,198.04,8.02640491]
[1753180056900,0.06,198.11,198.05,0.69]
[1753180057082,7.33640491,198.1,198.05,0.69]
[1753180057283,7.33640491,198.1,198.06,0.69]
[1753180058509,7.33640491,198.1,198.06,5.73894704]
[1753180059083,7.39640491,198.11,198.07,0.69]
[1753180059284,0.06,198.11,198.08,0.69]
[1753180059590,0.06,198.11,198.1,7.33640491]
[1753180059779,0.06,198.11,198.1,0.69]
[1753180061000,0.06,198.11,198.1,13.07436048]
[1753180061202,0.06,198.11,198.1,0.69]
[1753180061505,0.06,198.11,198.09,38.38451567]
[1753180061506,0.06,198.11,198.09,5.04811076]
[1753180061710,0.06,198.11,198.1,0.69]
[1753180062088,0.06,198.11,198.1,8.02640491]
[1753180063104,0.06,198.11,198.1,13.07436048]
[1753180069192,0.06,198.11,198.1,5.04795557]
[1753180069714,0.06,198.11,198.07,5.27445021]
[1753180070007,0.06,198.11,198.07,0.69]
[1753180070206,0.06,198.11,198.08,5.27445021]
[1753180070388,0.06,198.11,198.09,0.69]
[1753180070587,0.06,198.11,198.07,9.63314541]
[1753180071004,0.06,198.11,198.07,5.0486952]
[1753180071212,0.06,198.11,198.07,5.7386952]
[1753180072706,0.06,198.11,198.08,0.69]
[1753180073212,0.06,198.11,198.09,0.69]
[1753180073395,0.06,198.11,198.1,5.04795557]
[1753180074219,0.06,198.11,198.07,0.69]
[1753180074606,0.06,198.11,198.07,5.73872014]
[1753180075904,0.06,198.11,198.03,0.03]
[1753180075905,4.58445021,198.08,198.03,0.03]
[1753180076121,4.58445021,198.07,198.03,5.0797106]
[1753180076305,4.58445021,198.07,198.03,5.7697106]
[1753180077817,4.58445021,198.07,198.04,0.69]
[1753180078203,4.58445021,198.07,198.03,5.0797106]
[1753180079930,4.58445021,198.07,198.04,0.69]
[1753180080109,4.58445021,198.09,198.04,0.69]
[1753180080348,4.58445021,198.09,198.05,0.69]
[1753180080517,4.58445021,198.1,198.04,4.58445021]
[1753180080830,4.58445021,198.1,198.06,0.69]
[1753180081124,4.58445021,198.1,198.06,5.73882619]
[1753180082429,1.6216,198.11,198.06,5.73882619]
[1753180082430,4.58445021,198.09,198.06,5.73882619]
[1753180082652,4.58445021,198.07,198.03,0.03]
[1753180082805,4.58445021,198.04,198.03,0.03]
[1753180083004,4.82445021,198.04,198.03,0.03]
[1753180083703,21.60913418,198.04,198.03,0.03]
[1753180084825,26.65861913,198.04,198.03,0.03]
[1753180087027,26.41861913,198.04,198.03,0.03]
[1753180087325,21.36913418,198.04,198.03,0.03]
[1753180087805,4.58445021,198.04,198.03,0.03]
[1753180091517,4.58445021,198.05,198.03,0.72]
[1753180092400,4.58445021,198.07,198.04,0.69]
[1753180093517,4.58445021,198.07,198.03,0.03]
[1753180093715,86.94820903,198.1,198.05,0.69]
[1753180093716,86.48445021,198.1,198.05,0.69]
[1753180093922,4.58445021,198.1,198.06,0.69]
[1753180094105,0.06,198.11,198.03,0.03]
[1753180094106,4.58445021,198.09,198.04,0.69]
[1753180094313,4.58445021,198.09,198.05,0.69]
[1753180095029,4.58445021,198.1,198.06,0.69]
[1753180095204,4.58445021,198.1,198.07,0.69]
[1753180097209,4.58445021,198.09,198.03,0.72]
[1753180097417,4.58445021,198.08,198.03,0.72]
[1753180097615,4.58445021,198.08,198.04,0.69]
[1753180097817,4.58445021,198.09,198.05,0.69]
[1753180098020,4.58445021,198.09,198.03,9.66412428]
[1753180098229,4.58445021,198.09,198.04,0.69]
[1753180098444,4.58445021,198.09,198.05,0.69]
[1753180098732,4.58445021,198.09,198.06,0.69]
[1753180100121,4.58445021,198.09,198.04,0.69]
[1753180101622,4.58445021,198.05,198.03,0.03]
[1753180104235,4.58445021,198.04,198.03,0.03]
[1753180104424,5.048762,198.07,198.03,0.03]
[1753180104939,4.58445021,198.04,198.03,0.03]
[1753180105236,4.58445021,198.07,198.04,0.72]
[1753180105411,4.58445021,198.07,198.05,0.72]
[1753180105726,4.58445021,198.07,198.03,0.03]
[1753180105727,4.58445021,198.08,198.06,0.72]
[1753180106038,81.9,198.09,198.03,4.61445021]
[1753180106039,4.58445021,198.09,198.03,4.61445021]
[1753180106221,4.58445021,198.09,198.07,0.72]
[1753180107621,4.58445021,198.09,198.07,0.75]
[1753180110743,4.64445021,198.1,198.07,0.03]
[1753180112148,4.58445021,198.08,198.07,0.03]
[1753180112555,0.24,198.09,198.07,0.03]
[1753180112732,4.58445021,198.08,198.07,0.03]
[1753180113551,5.10801662,198.1,198.07,0.03]
[1753180113739,4.58445021,198.08,198.07,0.03]
[1753180115634,4.58445021,198.09,198.07,0.03]
[1753180115862,0.06,198.1,198.08,0.72]
[1753180116966,0.06,198.1,198.09,0.72]
[1753180117566,0.06,198.1,198.09,5.7682104]
[1753180120335,0.06,198.1,198.09,10.35266061]
[1753180120760,0.06,198.1,198.09,5.7682104]
[1753180122835,0.06,198.1,198.09,10.35266061]
[1753180124263,0.06,198.1,198.09,5.7682104]
[1753180124444,0.06,198.1,198.09,10.35266061]
[1753180125436,0.06,198.1,198.09,5.7682104]
[1753180125866,0.06,198.1,198.09,10.35266061]
[1753180128162,0.06,198.11,198.1,1.574]
[1753180128343,0.06,198.11,198.1,32.87845021]
[1753180128548,0.2,198.12,198.1,34.5271]
[1753180128746,0.2,198.12,198.11,5.80922028]
[1753180129172,0.2,198.12,198.11,5.08922028]
[1753180129354,0.2,198.12,198.11,5.80922028]
[1753180129951,0.2,198.12,198.11,10.85692105]
[1753180131571,0.2,198.14,198.12,16.78468397]
[1753180131750,86.48445021,198.29,198.22,4.58445021]
[1753180131951,86.48445021,198.29,198.23,0.65]
[1753180132663,4.58445021,198.27,198.2,0.65]
[1753180132893,4.58445021,198.27,198.21,4.58445021]
[1753180133176,4.58445021,198.27,198.21,5.23445021]
[1753180133677,4.58445021,198.27,198.22,5.0448996]
[1753180133865,4.58445021,198.27,198.22,5.6948996]
[1753180134049,4.58445021,198.27,198.22,5.0448996]
[1753180134253,81.9,198.29,198.19,5.04566325]
[1753180134254,4.58445021,198.25,198.19,5.04566325]
[1753180134467,4.88445021,198.24,198.19,5.04566325]
[1753180134877,4.88445021,198.23,198.19,5.04566325]
[1753180135177,4.88445021,198.23,198.17,10.2803709]
[1753180135379,4.88445021,198.23,198.17,5.69592069]
[1753180136280,4.88445021,198.22,198.17,5.04592069]
[1753180136485,4.58445021,198.2,198.14,5.23445021]
[1753180136779,4.58445021,198.18,198.13,5.04719123]
[1753180136975,4.88445021,198.18,198.13,5.04719123]
[1753180137181,4.88445021,198.17,198.12,5.04741025]
[1753180137779,4.58445021,198.17,198.12,5.69741025]
[1753180137984,4.58445021,198.17,198.13,0.65]
[1753180139958,4.58445021,198.17,198.13,5.69717512]
[1753180140590,86.48445021,198.22,198.15,4.58445021]
[1753180140782,4.58445021,198.24,198.18,4.58445021]
[1753180140985,5.04369719,198.27,198.19,5.23445021]
[1753180141176,4.58445021,198.25,198.19,0.65]
[1753180141482,0.3,198.27,198.19,5.23445021]
[1753180141483,4.58445021,198.26,198.19,5.23445021]
[1753180141998,4.58445021,198.26,198.17,1.6004]
[1753180141999,4.58445021,198.26,198.2,10.27985888]
[1753180142301,81.9,198.28,198.21,5.23445021]
[1753180142302,4.58445021,198.27,198.21,5.23445021]
[1753180143883,4.58445021,198.27,198.22,5.0448996]
[1753180144090,4.58445021,198.27,198.22,5.6948996]
[1753180144791,4.58445021,198.26,198.22,5.0448996]
[1753180145282,4.58445021,198.27,198.22,5.0448996]
[1753180145586,4.58445021,198.27,198.22,5.6948996]
[1753180147267,4.88445021,198.27,198.22,5.6948996]
[1753180147592,4.58445021,198.24,198.18,5.04591785]
[1753180147772,4.88445021,198.23,198.17,5.04611255]
[1753180147967,4.58445021,198.19,198.13,0.65]
[1753180148276,4.58445021,198.2,198.13,5.23445021]
[1753180148479,4.58445021,198.2,198.14,4.58445021]
[1753180148682,4.58445021,198.2,198.14,5.23445021]
[1753180148887,16.78468397,198.21,198.15,5.23445021]
[1753180149075,21.36913418,198.21,198.16,5.04642712]
[1753180149391,21.36913418,198.21,198.16,5.69642712]
[1753180150283,4.58445021,198.21,198.16,5.69642712]
[1753180150590,87.24498457,198.22,198.16,5.69642712]
[1753180150794,4.58445021,198.2,198.15,5.0466818]
[1753180151089,4.58445021,198.2,198.15,5.6966818]
[1753180151400,4.58445021,198.21,198.16,0.65]
[1753180151569,4.58445021,198.21,198.17,0.65]
[1753180151771,5.04419496,198.25,198.18,0.65]
[1753180151970,21.82887893,198.25,198.18,0.65]
[1753180152195,4.58445021,198.23,198.18,0.65]
[1753180152391,4.58445021,198.24,198.19,0.65]
[1753180152978,4.58445021,198.24,198.19,5.69552931]
[1753180153698,4.58445021,198.22,198.17,5.69598111]
[1753180153998,4.58445021,198.21,198.17,5.04598111]
[1753180154187,4.64445021,198.21,198.17,5.04598111]
[1753180154387,4.64445021,198.21,198.15,30.58445021]
[1753180154696,4.64445021,198.21,198.14,26.65]
[1753180154697,4.58445021,198.2,198.14,5.23445021]
[1753180155092,9.62986041,198.2,198.15,5.04666165]
[1753180155288,4.58445021,198.19,198.14,5.69686628]
[1753180157108,4.58445021,198.18,198.13,5.07713613]
[1753180157898,4.58445021,198.18,198.13,5.72713613]
[1753180158282,4.58445021,198.18,198.14,0.65]
[1753180159398,4.88445021,198.19,198.14,0.65]
[1753180160095,4.88445021,198.19,198.14,5.69692839]
[1753180160404,4.58445021,198.18,198.14,5.69692839]
[1753180160776,4.58445021,198.18,198.14,5.04692839]
[1753180161187,4.58445021,198.15,198.13,0.03]
[1753180161498,4.58445021,198.16,198.13,0.03]
[1753180161798,4.58445021,198.17,198.13,0.72]
[1753180161994,4.58445021,198.18,198.14,0.69]
[1753180162203,21.8301082,198.2,198.13,0.03]
[1753180162204,4.58445021,198.17,198.13,0.03]
[1753180162580,4.58445021,198.14,198.13,0.03]
[1753180163011,4.58445021,198.15,198.13,0.03]
[1753180163699,4.88445021,198.15,198.13,0.03]
[1753180164003,4.58445021,198.17,198.13,0.03]
[1753180164304,4.58445021,198.18,198.14,0.69]
[1753180164480,4.58445021,198.18,198.13,0.03]
[1753180164680,4.58445021,198.18,198.13,0.72]
[1753180165099,4.88445021,198.18,198.13,0.72]
[1753180165285,4.88445021,198.18,198.13,5.76707719]
[1753180165480,4.58445021,198.17,198.13,5.76707719]
[1753180167099,4.58445021,198.17,198.13,0.72]
[1753180168403,4.58445021,198.17,198.13,5.76715547]
[1753180168607,4.58445021,198.2,198.14,5.27445021]
[1753180168810,4.58445021,198.2,198.15,0.69]
[1753180168996,4.58445021,198.2,198.16,0.69]
[1753180170202,4.58445021,198.2,198.16,5.73636124]
[1753180170385,4.58445021,198.2,198.16,0.69]
[1753180170997,5.10516596,198.21,198.16,0.69]
[1753180171207,4.58445021,198.2,198.16,5.73637935]
[1753180171400,4.58445021,198.2,198.16,0.69]
[1753180172712,4.58445021,198.2,198.16,0.69]
[1753180173711,4.58445021,198.2,198.16,5.73633195]
[1753180174007,0.06,198.21,198.17,0.69]
[1753180174897,0.06,198.21,198.18,5.04591785]
[1753180175210,0.06,198.21,198.19,0.69]
[1753180175612,0.06,198.21,198.2,0.69]
[1753180177000,0.06,198.21,198.2,5.73540867]
[1753180178208,0.06,198.21,198.2,10.31985888]
[1753180185459,0.06,198.21,198.2,5.73540867]
[1753180185733,0.06,198.21,198.2,10.31985888]
[1753180186322,1e-08,198.21,198.2,15.40884995]
[1753180186521,1e-08,198.21,198.2,21.91704995]
[1753180186825,0.06,198.27,198.23,26.0]
[1753180187029,0.06,198.29,198.26,4.58445021]
[1753180187030,1e-08,198.29,198.26,4.58445021]
[1753180187201,1e-08,198.29,198.28,4.58445021]
[1753180187632,1e-08,198.29,198.28,5.27445021]
[1753180188327,1e-08,198.29,198.28,5.733373]
[1753180188536,1e-08,198.29,198.28,10.31782321]
[1753180191912,1e-08,198.31,198.3,26.0]
[1753180192111,1e-08,198.31,198.3,35.16890042]
[1753180192434,1e-08,198.31,198.3,40.91176476]
[1753180193011,1e-08,198.31,198.3,31.74286434]
[1753180193324,1e-08,198.31,198.3,40.91176476]
[1753180195836,1e-08,198.31,198.3,59.80133516]
[1753180196219,1e-08,198.31,198.3,89.80133516]
[1753180199737,0.3,198.43,198.3,127.62281775]
[1753180199928,0.3,198.43,198.39,4.58445021]
[1753180200124,13.0804696,198.45,198.39,4.58445021]
[1753180200326,0.3,198.45,198.38,0.7]
[1753180200546,0.3,198.48,198.43,4.58445021]
[1753180200745,0.3,198.48,198.43,5.28445021]
[1753180201258,0.3,198.48,198.36,26.0]
[1753180201450,0.3,198.48,198.44,5.03930659]
[1753180201850,4.58445021,198.45,198.38,5.04083072]
[1753180202046,22.12300726,198.48,198.38,5.04083072]
[1753180202047,4.58445021,198.43,198.38,5.04083072]
[1753180202365,0.3,198.46,198.41,4.58445021]
[1753180203047,0.3,198.45,198.41,26.0]
[1753180203247,0.3,198.45,198.41,30.58445021]
[1753180203447,0.3,198.45,198.42,5.03981453]
[1753180204086,4.58445021,198.48,198.42,5.03981453]
[1753180204266,16.78468397,198.48,198.43,4.58445021]
[1753180204464,0.3,198.47,198.42,9.62426474]
[1753180204868,0.3,198.46,198.42,9.62426474]
[1753180205071,0.3,198.45,198.42,5.03981453]
[1753180205565,0.3,198.44,198.42,5.03981453]
[1753180205890,0.3,198.43,198.41,31.04003002]
[1753180206083,0.3,198.45,198.41,31.04003002]
[1753180206380,0.3,198.44,198.41,9.62448023]
[1753180206583,0.3,198.45,198.41,9.62448023]
[1753180206883,4.58445021,198.47,198.41,5.04003002]
[1753180207097,0.3,198.45,198.41,5.04003002]
[1753180207661,4.58445021,198.47,198.41,10.32448023]
[1753180208066,0.3,198.46,198.41,5.04003002]
[1753180208387,0.3,198.45,198.41,5.04003002]
[1753180208886,0.3,198.44,198.41,5.04003002]
[1753180209555,0.3,198.46,198.41,9.62448023]
[1753180209754,4.58445021,198.46,198.41,5.74003002]
[1753180210188,4.88445021,198.46,198.41,5.04003002]
[1753180210366,0.3,198.46,198.41,5.04003002]
[1753180210561,103.56913418,198.48,198.42,5.28445021]
[1753180211291,12.65095526,198.56,198.47,4.58445021]
[1753180211292,8.1307,198.56,198.47,4.58445021]
[1753180211495,8.1307,198.56,198.52,5.03727584]
[1753180211496,0.06,198.56,198.52,5.03727584]
[1753180211805,0.06,198.56,198.55,30.58445021]
[1753180212365,0.06,198.56,198.55,31.28445021]
[1753180212565,0.06,198.56,198.55,30.58445021]
[1753180213109,0.06,198.56,198.55,26.0]
[1753180213265,0.36,198.56,198.52,43.63046544]
[1753180213467,0.06,198.56,198.52,48.21491565]
[1753180213672,0.06,198.56,198.52,17.63046544]
[1753180213974,0.06,198.56,198.54,4.58445021]
[1753180214194,0.06,198.56,198.55,30.58445021]
[1753180214498,0.06,198.56,198.55,26.7]
[1753180215000,0.06,198.56,198.55,34.35280235]
[1753180215295,0.06,198.56,198.55,8.35280235]
[1753180215544,0.4,198.68,198.59,17.62425096]
[1753180215665,0.1,198.68,198.64,4.58445021]